bitfinex/quotes_SOLUSD_20240621
["timestamp","ask_amount","ask_price","bid_price","bid_amount"]
[1718997831775,0.8627372,132.59,132.54,6.0358]
[1718997832680,0.8627372,132.59,132.55,6.0353]
[1718997832989,0.8627372,132.59,132.56,6.0349]
[1718997833179,0.8627372,132.59,132.57,6.0344]
[1718997834984,0.8627372,132.59,132.54,28.73]
[1718997835286,0.8627372,132.59,132.55,6.035]
[1718997836588,0.8627372,132.59,132.56,6.0349]
[1718997836787,0.8627372,132.59,132.54,43.8189]
[1718997837092,0.8627372,132.59,132.58,6.034]
[1718997837992,0.8627372,132.59,132.58,6.204]
[1718997838564,0.8627372,132.59,132.58,6.374]
[1718997840064,0.8627372,132.59,132.58,6.034]
[1718997840261,0.8627372,132.59,132.57,28.73]
[1718997840490,0.8627372,132.59,132.54,44.6631]
[1718997840683,0.8627372,132.59,132.56,6.0347]
[1718997841485,0.8627372,132.59,132.57,6.0344]
[1718997841799,0.8627372,132.59,132.58,6.034]
[1718997841988,0.8627372,132.59,132.58,6.374]
[1718997842769,0.8627372,132.59,132.58,6.034]
[1718997843096,0.8627372,132.59,132.58,6.204]
[1718997843272,0.8627372,132.59,132.58,6.374]
[1718997844892,0.8627372,132.59,132.57,34.7645]
[1718997845201,0.8627372,132.59,132.57,6.0345]
[1718997845597,0.8627372,132.59,132.58,6.034]
[1718997846064,0.8627372,132.59,132.57,6.0343]
[1718997847172,0.8627372,132.59,132.58,6.034]
[1718997848412,0.8627372,132.59,132.57,6.0344]
[1718997848586,0.8627372,132.59,132.56,6.0349]
[1718997849091,0.8627372,132.59,132.54,43.8197]
[1718997849283,0.8627372,132.59,132.57,6.0344]
[1718997850280,0.8627372,132.59,132.58,6.034]
[1718997850989,0.8627372,132.59,132.57,6.0343]
[1718997851200,0.8627372,132.59,132.56,6.0348]
[1718997852380,0.8627372,132.59,132.55,6.0353]
[1718997853204,0.8627372,132.59,132.56,6.0348]
[1718997853401,0.8627372,132.59,132.55,6.0352]
[1718997853793,7.0396372,132.59,132.51,28.73]
[1718997853986,7.0396372,132.59,132.53,6.0361]
[1718997854190,7.0396372,132.59,132.51,28.73]
[1718997854390,15.6238,132.58,132.51,6.037]
[1718997856100,15.6238,132.58,132.54,6.0359]
[1718997856286,15.6238,132.58,132.5,43.8241]
[1718997856287,15.6238,132.58,132.55,6.0353]
[1718997856491,0.8627372,132.59,132.53,28.73]
[1718997856815,0.8627372,132.59,132.57,6.0344]
[1718997857385,0.8627372,132.59,132.54,0.34]
[1718997857599,0.8627372,132.59,132.58,6.034]
[1718997857891,0.8627372,132.59,132.58,6.204]
[1718997858101,0.8627372,132.59,132.58,6.374]
[1718997862908,0.8627372,132.59,132.54,33.5]
[1718997863108,0.8627372,132.59,132.55,20.34]
[1718997864110,0.8627372,132.59,132.57,6.0344]
[1718997864497,0.8627372,132.59,132.58,6.034]
[1718997864989,21.5348,132.66,132.62,6.0319]
[1718997865184,21.5348,132.66,132.59,15.0834]
[1718997865404,21.5348,132.66,132.57,30.5316]
[1718997865820,21.5348,132.66,132.58,0.34]
[1718997866113,21.5348,132.66,132.6,6.0328]
[1718997867296,21.5348,132.66,132.58,0.34]
[1718997867503,21.5348,132.66,132.58,6.0338]
[1718997868319,21.5348,132.66,132.57,6.0345]
[1718997868820,21.5348,132.66,132.58,6.034]
[1718997869316,21.5348,132.66,132.6,6.0331]
[1718997869995,21.5348,132.66,132.6,6.033]
[1718997870196,21.5348,132.66,132.59,6.0335]
[1718997870594,21.5348,132.66,132.6,6.033]
[1718997870796,21.5348,132.66,132.59,6.0334]
[1718997871990,21.5348,132.66,132.57,30.1719]
[1718997872296,21.5348,132.66,132.62,6.0318]
[1718997875327,21.5348,132.66,132.57,15.082]
[1718997875621,21.5348,132.66,132.54,30.1783]
[1718997875622,21.5348,132.66,132.55,15.0886]
[1718997875919,21.5348,132.66,132.6,6.0331]
[1718997876116,21.5348,132.66,132.59,6.0335]
[1718997876305,21.5348,132.66,132.58,6.0338]
[1718997877315,21.5348,132.66,132.59,6.0335]
[1718997877524,21.5348,132.66,132.57,15.0854]
[1718997877723,21.5348,132.66,132.6,6.0328]
[1718997877925,21.5348,132.66,132.56,6.2047]
[1718997878125,21.5348,132.66,132.57,6.0345]
[1718997879311,21.5348,132.66,132.58,6.034]
[1718997880414,21.5348,132.66,132.54,15.0886]
[1718997880735,21.5348,132.66,132.58,6.0338]
[1718997882221,21.5348,132.66,132.56,15.0874]
[1718997882426,21.5348,132.66,132.58,28.72]
[1718997882611,21.5348,132.66,132.6,6.0329]
[1718997882813,21.5348,132.66,132.61,6.0327]
[1718997886528,21.5348,132.66,132.62,6.032]
[1718997887114,21.5348,132.66,132.61,6.0324]
[1718997889134,21.5348,132.66,132.6,15.0823]
[1718997889303,21.5348,132.66,132.62,6.0321]
[1718997889726,21.5348,132.66,132.59,0.34]
[1718997889727,21.5348,132.66,132.61,6.0326]
[1718997889931,21.5348,132.66,132.59,0.34]
[1718997890102,21.5348,132.66,132.6,6.0329]
[1718997890630,21.5348,132.66,132.59,6.2033]
[1718997890927,21.5348,132.66,132.6,6.033]
[1718997891134,21.5348,132.66,132.57,43.8054]
[1718997891326,21.5348,132.66,132.58,0.17]
[1718997892327,21.5348,132.66,132.62,6.032]
[1718997893133,21.5348,132.66,132.6,15.082]
[1718997893354,20.0348,132.66,132.62,6.0321]
[1718997896142,20.0348,132.66,132.63,6.0317]
[1718997896322,20.0348,132.66,132.62,6.032]
[1718997898127,4.12782038,132.72,132.63,22.3771]
[1718997898435,0.8627372,132.72,132.68,6.0292]
[1718997898731,0.8627372,132.72,132.66,6.0301]
[1718997898942,0.8627372,132.72,132.65,6.0307]
[1718997899117,0.8627372,132.72,132.66,6.0304]
[1718997900141,0.8627372,132.72,132.64,29.06]
[1718997900322,0.8627372,132.72,132.66,6.0302]
[1718997900529,0.8627372,132.72,132.67,6.0298]
[1718997900741,0.8627372,132.72,132.67,6.0297]
[1718997900915,0.8627372,132.72,132.67,6.0298]
[1718997901241,0.8627372,132.72,132.66,6.0303]
[1718997901620,0.8627372,132.72,132.64,44.1375]
[1718997902039,0.8627372,132.72,132.66,6.0304]
[1718997902418,0.8627372,132.72,132.64,44.1375]
[1718997902615,0.8627372,132.72,132.67,6.0298]
[1718997903218,0.8627372,132.72,132.66,6.0302]
[1718997903528,0.8627372,132.72,132.64,29.06]
[1718997903720,0.8627372,132.72,132.6,6.5374]
[1718997903924,0.8627372,132.72,132.66,6.0302]
[1718997904134,0.8627372,132.72,132.63,15.0791]
[1718997904343,0.8627372,132.72,132.67,6.0296]
[1718997904524,0.8627372,132.72,132.67,6.0298]
[1718997905021,0.8627372,132.72,132.66,6.0304]
[1718997906551,0.8627372,132.72,132.67,6.0299]
[1718997906746,0.8627372,132.72,132.65,15.0763]
[1718997906955,0.8627372,132.72,132.7,6.0282]
[1718997907260,0.8627372,132.72,132.71,6.0281]
[1718997907420,0.8627372,132.72,132.7,6.0284]
[1718997908025,0.8627372,132.72,132.69,6.0288]
[1718997908249,0.8627372,132.72,132.7,6.0285]
[1718997909231,0.8627372,132.72,132.69,6.0289]
[1718997909424,0.8627372,132.72,132.7,6.0285]
[1718997910735,0.8627372,132.72,132.7,6.0282]
[1718997910927,0.8627372,132.72,132.68,28.72]
[1718997911133,0.8627372,132.72,132.71,6.0281]
[1718997911436,17.4991372,132.72,132.7,6.0285]
[1718997911757,0.8627372,132.72,132.71,34.7481]
[1718997913153,0.8627372,132.72,132.71,35.0881]
[1718997915041,6.0241,132.8,132.73,15.0675]
[1718997915252,6.0241,132.8,132.71,49.06]
[1718997915253,6.0218,132.85,132.75,15.459]
[1718997915456,0.8627372,132.86,132.75,15.459]
[1718997915457,0.8627372,132.86,132.82,6.023]
[1718997915767,6.8842372,132.86,132.81,34.7435]
[1718997916059,0.8627372,132.86,132.82,6.0228]
[1718997916360,15.5177,132.88,132.83,6.0226]
[1718997916361,20.9008372,132.88,132.83,6.0226]
[1718997916657,20.9008372,132.88,132.82,6.023]
[1718997916830,20.9008372,132.88,132.82,6.0228]
[1718997916831,20.9011372,132.88,132.82,6.0228]
[1718997917035,20.9011372,132.88,132.83,6.0227]
[1718997917237,14.8804372,132.88,132.81,28.72]
[1718997917455,14.8804372,132.88,132.82,0.34]
[1718997917668,20.9008372,132.88,132.83,6.0226]
[1718997917965,20.9009372,132.88,132.83,6.0226]
[1718997918460,14.8804372,132.88,132.76,6.5371]
[1718997918671,6.0224,132.84,132.78,6.0246]
[1718997918835,14.8804372,132.88,132.74,15.0662]
[1718997918836,6.0227,132.83,132.74,15.0662]
[1718997919040,6.0224,132.84,132.78,6.0247]
[1718997919240,6.0227,132.83,132.78,6.0247]
[1718997919563,6.0224,132.84,132.79,6.0244]
[1718997919747,6.0224,132.84,132.78,6.0248]
[1718997919950,14.8804372,132.88,132.76,15.0647]
[1718997920683,15.1212,132.86,132.72,15.5939]
[1718997920957,110.0,132.89,132.71,29.93426747]
[1718997920958,22.1516,132.8,132.75,6.026]
[1718997921157,6.0245,132.79,132.74,6.0267]
[1718997921334,22.1517,132.8,132.75,6.0262]
[1718997921535,22.1517,132.8,132.73,15.0678]
[1718997921536,16.1275,132.8,132.73,15.0678]
[1718997921735,16.1275,132.84,132.77,6.0251]
[1718997922160,6.0232,132.82,132.77,6.0251]
[1718997922468,6.0232,132.82,132.78,45.0]
[1718997923176,22.1499,132.84,132.79,6.0245]
[1718997923352,16.1275,132.84,132.78,45.0]
[1718997923667,15.0593,132.81,132.71,30.1391]
[1718997924038,6.0253,132.78,132.73,6.0271]
[1718997924434,6.0237,132.81,132.72,15.0681]
[1718997924638,6.0237,132.81,132.75,6.0261]
[1718997924871,6.0238,132.81,132.76,6.0257]
[1718997925338,6.0232,132.82,132.77,6.0253]
[1718997925760,31.1842,132.84,132.73,15.0671]
[1718997925945,31.1842,132.84,132.74,45.34]
[1718997926148,6.0243,132.8,132.75,6.0262]
[1718997926358,6.0243,132.8,132.76,45.0]
[1718997926962,31.1842,132.84,132.76,45.0]
[1718997927150,6.0237,132.81,132.76,51.0255]
[1718997927561,6.0233,132.82,132.77,6.0253]
[1718997927760,6.0229,132.83,132.78,51.0246]
[1718997928139,6.0233,132.82,132.78,45.0]
[1718997929555,6.0229,132.83,132.78,51.0246]
[1718997929765,16.1275,132.84,132.79,6.0245]
[1718997930075,22.1499,132.84,132.8,45.0]
[1718997930477,6.023,132.83,132.8,45.0]
[1718997930640,8.86784097,132.94,132.8,22.9452]
[1718997930966,23.208,132.98,132.88,6.0203]
[1718997930967,6.12296291,132.95,132.88,6.0203]
[1718997931175,6.12296291,132.95,132.84,15.0555]
[1718997931176,6.12296291,132.95,132.87,6.0206]
[1718997931338,6.12296291,132.95,132.81,76.5258]
[1718997931543,6.12296291,132.95,132.84,6.0221]
[1718997931753,11.01469999,132.9,132.85,51.0216]
[1718997932171,6.0202,132.89,132.85,45.0]
[1718997932477,6.0206,132.88,132.85,45.0]
[1718997932684,6.0201,132.89,132.84,51.0221]
[1718997933651,6.0201,132.89,132.85,6.0217]
[1718997933852,11.01469999,132.9,132.85,6.0217]
[1718997934867,4.99499999,132.9,132.86,6.0212]
[1718997935070,4.99499999,132.9,132.87,51.0208]
[1718997935269,4.99499999,132.9,132.86,6.0211]
[1718997935472,4.99499999,132.9,132.87,45.0]
[1718997935779,67.9699,132.89,132.75,10.98826741]
[1718997935951,6.0235,132.82,132.76,6.0257]
[1718997936150,67.9699,132.89,132.72,15.0693]
[1718997936369,6.0241,132.8,132.74,6.0264]
[1718997936548,6.0246,132.79,132.74,6.0267]
[1718997936864,6.0258,132.77,132.71,28.7877]
[1718997937070,6.0258,132.77,132.72,6.0276]
[1718997937451,6.0002,132.81,132.74,6.0267]
[1718997937653,6.0002,132.81,132.75,6.0262]
[1718997937970,12.0241,132.81,132.75,6.0262]
[1718997938167,6.0242,132.8,132.75,6.0262]
[1718997938368,12.0239,132.81,132.75,6.0262]
[1718997938567,6.0237,132.81,132.76,6.0258]
[1718997938749,6.0228,132.83,132.77,51.0253]
[1718997938954,6.0223,132.84,132.78,6.0246]
[1718997939169,26.023,132.83,132.77,51.0253]
[1718997939359,6.0232,132.82,132.72,33.37]
[1718997939662,6.0237,132.81,132.76,6.0257]
[1718997940673,6.0233,132.82,132.73,0.34]
[1718997940858,6.0233,132.82,132.73,45.34]
[1718997941671,6.0236,132.81,132.76,6.0257]
[1718997941849,6.0231,132.83,132.77,6.0253]
[1718997942049,20.0,132.84,132.77,6.0253]
[1718997942287,20.0,132.84,132.78,6.0249]
[1718997942288,6.0228,132.83,132.78,6.0249]
[1718997942469,26.0224,132.84,132.78,6.0249]
[1718997942659,6.0228,132.83,132.78,6.0249]
[1718997943359,6.0232,132.82,132.77,6.0253]
[1718997943568,6.0232,132.82,132.78,45.0]
[1718997944073,6.0229,132.83,132.78,51.0249]
[1718997944784,6.0232,132.82,132.78,45.0]
[1718997945162,6.024,132.81,132.78,45.0]
[1718997945486,20.0,132.84,132.77,45.0]
[1718997945782,6.0232,132.82,132.77,51.0251]
[1718997946376,20.0,132.84,132.77,45.0]
[1718997946688,6.0237,132.81,132.76,6.0257]
[1718997947595,6.024,132.8,132.76,6.0257]
[1718997948264,20.0,132.84,132.71,22.7596]
[1718997948469,6.0252,132.78,132.73,6.0269]
[1718997948957,6.0245,132.8,132.75,6.0262]
[1718997949165,6.0245,132.8,132.75,5.5262]
[1718997950485,6.0238,132.81,132.76,6.0258]
[1718997950790,26.0241,132.8,132.76,6.0258]
[1718997951089,6.0241,132.8,132.75,6.0261]
[1718997951383,6.0238,132.81,132.76,51.0258]
[1718997951590,6.0243,132.8,132.76,45.0]
[1718997951797,20.0,132.84,132.74,6.0265]
[1718997951959,6.0245,132.79,132.74,6.0265]
[1718997952292,6.0237,132.81,132.76,6.0255]
[1718997952581,6.0236,132.81,132.77,6.0253]
[1718997952890,6.0236,132.81,132.76,6.0258]
[1718997953068,15.667,132.83,132.77,6.0252]
[1718997953275,26.0235,132.82,132.78,6.0249]
[1718997953579,6.0235,132.82,132.77,6.0252]
[1718997954572,20.0,132.84,132.76,6.0258]
[1718997954766,20.0,132.84,132.77,45.0]
[1718997955289,6.0238,132.81,132.77,45.0]
[1718997955673,6.0238,132.81,132.77,51.0253]
[1718997955987,6.0233,132.82,132.77,51.0253]
[1718997956887,20.0,132.84,132.72,39.6322009]
[1718997956888,20.0,132.81,132.72,39.6322009]
[1718997957088,20.0,132.84,132.72,28.64]
[1718997957389,6.0259,132.76,132.71,33.75426316]
[1718997957587,15.8939,132.83,132.71,17.02266316]
[1718997957770,6.0261,132.76,132.71,17.02266316]
[1718997957971,15.8939,132.83,132.71,10.99466316]
[1718997957972,6.0271,132.74,132.71,10.99466316]
[1718997958173,6.0265,132.75,132.71,10.99466316]
[1718997958377,6.6218,132.78,132.71,10.99466316]
[1718997958561,6.0266,132.75,132.72,10.99466316]
[1718997958762,6.0268,132.74,132.71,10.99466316]
[1718997959381,6.0272,132.73,132.72,10.99466316]
[1718997959573,6.0265,132.75,132.72,10.99466316]
[1718997959970,6.0265,132.75,132.72,10.99846035]
[1718997960380,6.0265,132.75,132.73,10.99846035]
[1718997961267,6.0255,132.77,132.74,10.99846035]
[1718997961775,6.0254,132.77,132.74,10.99846035]
[1718997962099,6.026,132.76,132.74,10.99846035]
[1718997962301,6.0262,132.76,132.71,6.0278]
[1718997962586,6.0262,132.76,132.7,28.64]
[1718997962587,6.6218,132.78,132.73,11.00383514]
[1718997962791,26.0257,132.77,132.73,11.00480092]
[1718997963094,20.0,132.77,132.74,11.00480092]
[1718997963295,6.0263,132.75,132.73,11.00480092]
[1718997964271,6.026,132.76,132.72,11.00480092]
[1718997964794,20.0,132.77,132.72,17.03240092]
[1718997964972,20.0,132.77,132.73,17.03200092]
[1718997965174,12.6469,132.78,132.73,17.03200092]
[1718997965376,12.6469,132.78,132.73,6.0272]
[1718997966490,6.0251,132.78,132.73,6.0272]
[1718997966896,6.0255,132.77,132.72,17.02590443]
[1718997967402,6.0255,132.77,132.72,6.0275]
[1718997967695,6.0266,132.75,132.71,10.99840443]
[1718997968069,6.0269,132.74,132.71,10.99840443]
[1718997968264,6.0269,132.74,132.69,6.0289]
[1718997968468,6.0269,132.74,132.7,10.99934033]
[1718997969304,6.0274,132.73,132.69,10.99934033]
[1718997969471,6.027,132.74,132.69,17.02804033]
[1718997969671,6.027,132.74,132.69,17.02370642]
[1718997970006,45.0486,132.79,132.69,10.99500642]
[1718997970299,20.0,132.78,132.7,6.0284]
[1718997970595,6.0272,132.73,132.69,10.99332529]
[1718997970965,6.0272,132.73,132.69,17.02222529]
[1718997971376,6.027,132.74,132.69,17.02222529]
[1718997971580,6.027,132.74,132.7,6.0285]
[1718997972096,6.027,132.74,132.69,10.99332529]
[1718997972277,6.0281,132.72,132.69,10.99332529]
[1718997972479,6.0274,132.73,132.69,10.99332529]
[1718997972776,6.0269,132.74,132.7,6.0285]
[1718997973284,6.0269,132.74,132.69,6.0288]
[1718997973485,6.0269,132.74,132.69,17.04517766]
[1718997974006,6.0269,132.74,132.7,11.01637766]
[1718997974296,6.0269,132.74,132.69,17.04517766]
[1718997974497,6.0269,132.74,132.69,6.0288]
[1718997974683,6.0269,132.74,132.69,17.04451705]
[1718997974880,6.0269,132.74,132.7,11.01571705]
[1718997975188,6.0273,132.73,132.69,11.0159524]
[1718997975502,6.0272,132.73,132.69,17.0449524]
[1718997976006,6.0272,132.73,132.69,11.0159524]
[1718997976494,6.0272,132.73,132.69,17.0449524]
[1718997976676,6.0267,132.75,132.7,6.0285]
[1718997976881,6.0268,132.74,132.69,11.0159524]
[1718997977074,6.0268,132.74,132.69,17.0447524]
[1718997977269,6.0273,132.73,132.69,11.0159524]
[1718997977474,6.027,132.74,132.69,17.0449524]
[1718997977971,6.027,132.74,132.69,6.029]
[1718997978172,6.027,132.74,132.69,17.03474546]
[1718997978477,20.0,132.78,132.7,11.00574546]
[1718997978693,6.0273,132.73,132.7,11.00574546]
[1718997978894,6.0281,132.71,132.7,11.00574546]
[1718997979145,6.0283,132.71,132.69,11.00574546]
[1718997979285,6.4794,132.75,132.65,6.3898]
[1718997979472,6.0281,132.71,132.7,11.00430821]
[1718997980098,6.0281,132.71,132.69,11.00430821]
[1718997980404,6.0286,132.7,132.69,11.00430821]
[1718997980975,26.0286,132.7,132.69,11.00430821]
[1718997981183,6.0301,132.67,132.62,6.032]
[1718997981601,6.0292,132.69,132.64,6.0313]
[1718997981778,6.0292,132.69,132.64,6.0312]
[1718997981983,26.0288,132.7,132.65,6.0308]
[1718997982214,26.0291,132.69,132.64,6.0311]
[1718997982381,6.0295,132.68,132.63,6.0317]
[1718997982582,6.03,132.67,132.62,6.0321]
[1718997983193,6.0304,132.66,132.61,6.4772]
[1718997983499,6.031,132.65,132.61,6.4772]
[1718997984413,6.031,132.65,132.61,12.5098]
[1718997984709,6.0305,132.66,132.61,12.5098]
[1718997985212,6.0301,132.67,132.6,15.076]
[1718997985517,6.0297,132.68,132.63,6.0317]
[1718997985722,20.0,132.67,132.6,30.1579]
[1718997986008,21.55580997,132.75,132.65,28.64]
[1718997986214,6.0277,132.72,132.69,10.99167169]
[1718997986408,26.0269,132.74,132.69,10.99167169]
[1718997986580,6.0277,132.72,132.69,10.99167169]
[1718997986781,20.0,132.74,132.69,17.02067169]
[1718997987115,6.0275,132.73,132.69,10.99167169]
[1718997987296,26.0269,132.74,132.69,17.01851029]
[1718997987492,26.0269,132.74,132.69,10.98951029]
[1718997987695,26.0269,132.74,132.69,17.01831029]
[1718997988201,6.0278,132.72,132.69,10.98951029]
[1718997989312,26.0269,132.74,132.69,17.01831029]
[1718997990313,26.0269,132.74,132.69,17.01654862]
[1718997992201,20.0,132.74,132.69,10.98774862]
[1718997992395,6.0274,132.73,132.69,10.98774862]
[1718997993012,20.0,132.76,132.69,10.98774862]
[1718997993013,6.0278,132.72,132.69,10.98774862]
[1718997993201,20.0,132.76,132.69,10.98774862]
[1718997993522,6.0269,132.74,132.7,10.99503994]
[1718997993701,20.0,132.73,132.7,10.99503994]
[1718997994016,26.0273,132.73,132.7,10.99363657]
[1718997994218,6.0277,132.72,132.69,10.99363657]
[1718997994595,6.0277,132.72,132.69,10.99461172]
[1718997994794,26.0273,132.73,132.69,10.99461172]
[1718997995405,26.0273,132.73,132.68,6.0295]
[1718997995406,26.0273,132.73,132.7,10.99461172]
[1718997995793,26.0273,132.73,132.69,10.99461172]
[1718997996435,26.0273,132.73,132.69,10.99575238]
[1718997996925,20.0,132.73,132.7,17.02425238]
[1718997997607,20.0,132.74,132.7,17.02425238]
[1718997997925,26.0268,132.74,132.7,17.02425238]
[1718997998096,26.0268,132.74,132.7,10.99575238]
[1718997998502,6.0273,132.73,132.7,10.99575238]
[1718997999533,6.0273,132.73,132.68,6.1993]
[1718997999695,6.0273,132.73,132.7,10.99937721]
[1718998000029,20.0,132.74,132.69,10.99937721]
[1718998000214,20.0,132.76,132.7,10.99937721]
[1718998000400,6.0275,132.73,132.7,10.99937721]
[1718998002208,6.0269,132.74,132.7,10.99937721]
[1718998002518,26.0272,132.73,132.7,10.99937721]
[1718998002722,20.0,132.73,132.7,10.99961014]
[1718998003098,20.0,132.73,132.7,10.99940855]
[1718998004025,26.0273,132.73,132.7,10.99940855]
[1718998004408,20.0,132.73,132.7,10.99940855]
[1718998004814,6.0265,132.75,132.7,17.02790855]
[1718998005022,6.0263,132.75,132.71,6.0279]
[1718998005318,6.0263,132.75,132.7,17.02780855]
[1718998005526,6.0263,132.75,132.71,6.0281]
[1718998005909,6.0263,132.75,132.7,17.02645133]
[1718998006424,6.0263,132.75,132.71,10.99785133]
[1718998006608,6.0261,132.76,132.71,6.028]
[1718998008130,6.0263,132.75,132.71,6.028]
[1718998008605,6.026,132.76,132.71,6.028]
[1718998009608,6.026,132.76,132.71,17.03140741]
[1718998010401,6.0257,132.77,132.72,6.0275]
[1718998011002,12.47828671,132.81,132.7,26.07450741]
[1718998011003,6.0251,132.78,132.73,6.0271]
[1718998011204,6.0254,132.77,132.73,6.0271]
[1718998011730,6.0252,132.78,132.73,6.0271]
[1718998012404,6.0252,132.78,132.74,0.34]
[1718998013129,6.0254,132.77,132.72,6.0275]
[1718998013431,6.0254,132.77,132.73,6.3672]
[1718998013920,6.0251,132.78,132.73,6.3672]
[1718998014603,6.0251,132.78,132.74,6.0267]
[1718998014800,6.025,132.78,132.74,6.0267]
[1718998015628,6.025,132.78,132.74,5.5267]
[1718998016032,6.0246,132.79,132.74,5.5267]
[1718998017128,6.0246,132.79,132.75,6.0263]
[1718998018429,6.0246,132.79,132.74,6.0266]
[1718998018934,6.0246,132.79,132.75,6.0262]
[1718998019418,6.0246,132.79,132.76,9.55]
[1718998021730,6.0246,132.79,132.74,6.0268]
[1718998021936,6.0246,132.79,132.75,9.55]
[1718998022440,6.025,132.78,132.75,9.55]
[1718998022616,9.55,132.77,132.71,17.03106854]
[1718998022928,6.026,132.76,132.72,9.55]
[1718998023142,6.026,132.76,132.73,9.55]
[1718998023827,6.0264,132.75,132.7,6.0285]
[1718998024009,6.0269,132.74,132.69,23.64055208]
[1718998024208,6.3331,132.79,132.71,9.55]
[1718998024209,6.0273,132.73,132.71,9.55]
[1718998024433,6.0273,132.73,132.7,9.55]
[1718998026325,6.0278,132.72,132.7,9.55]
[1718998026704,9.55,132.75,132.7,9.55]
[1718998027018,6.0274,132.73,132.7,9.55]
[1718998029837,6.0281,132.71,132.69,11.01141754]
[1718998030026,6.0281,132.71,132.69,11.01907955]
[1718998030526,6.0278,132.72,132.69,11.01816199]
[1718998030742,6.027,132.74,132.71,9.55]
[1718998030909,20.0,132.73,132.71,9.55]
[1718998031835,6.027,132.74,132.71,9.55]
[1718998032025,6.027,132.74,132.72,9.55]
[1718998033342,6.0272,132.73,132.71,9.55]
[1718998034011,6.0269,132.74,132.71,9.55]
[1718998034436,22.2531,132.79,132.72,9.55]
[1718998034643,20.0,132.78,132.74,9.55]
[1718998034851,6.0266,132.75,132.73,9.55]
[1718998035141,6.0266,132.75,132.72,9.55]
[1718998035341,6.0266,132.75,132.7,32.10846983]
[1718998035554,6.0266,132.75,132.72,9.55]
[1718998035732,6.026,132.76,132.72,9.55]
[1718998036053,20.0,132.78,132.73,6.0272]
[1718998036054,6.0256,132.77,132.73,6.0272]
[1718998036251,6.0256,132.77,132.74,9.55]
[1718998037346,6.0256,132.77,132.75,9.55]
[1718998040454,20.0,132.78,132.7,26.08720886]
[1718998040628,20.0,132.8,132.72,9.55]
[1718998040831,9.55,132.77,132.72,9.55]
[1718998041030,6.0265,132.75,132.72,9.55]
[1718998041247,6.0268,132.74,132.72,9.55]
[1718998041553,6.0272,132.73,132.72,9.55]
[1718998041727,6.0269,132.74,132.72,9.55]
[1718998042151,6.028,132.72,132.69,11.02130886]
[1718998042356,6.0279,132.72,132.7,9.55]
[1718998042529,6.0279,132.72,132.69,20.57501934]
[1718998043067,6.0274,132.73,132.69,20.57501934]
[1718998043226,15.7953,132.76,132.69,11.02501934]
[1718998043227,6.0286,132.7,132.69,11.02501934]
[1718998044145,9.55,132.71,132.63,21.0827]
[1718998044468,6.03,132.67,132.65,9.55]
[1718998044640,6.03,132.67,132.62,12.4863]
[1718998044960,6.0317,132.64,132.6,15.051]
[1718998045134,6.0317,132.64,132.62,9.55]
[1718998045332,6.031,132.65,132.62,9.55]
[1718998045643,6.031,132.65,132.6,21.0841]
[1718998046037,6.0313,132.64,132.6,15.051]
[1718998046956,6.0318,132.63,132.58,16.34424871]
[1718998047256,6.0326,132.62,132.58,10.31034871]
[1718998047558,6.0326,132.62,132.58,6.4544]
[1718998047762,44.6152,132.69,132.57,3.85594871]
[1718998047931,6.0334,132.6,132.56,15.051]
[1718998048349,6.0336,132.59,132.54,6.0357]
[1718998048658,28.71,132.66,132.53,16.4067372]
[1718998048659,6.0353,132.56,132.53,16.4067372]
[1718998048858,15.9813,132.65,132.53,16.4067372]